[Event "Titled Tuesday Blitz June 13 Late 2023"]
[White "Fiorito, Joaquin"]
[Black "Wizard_of_Odds"]
[WhiteFideId "180173"]
[WhiteElo "2199"]
[BlackElo "2489"]
[Result "1-0"]
[Round "8"]
[TimeControl "180+2"]
[Date "2023.06.13"]
[WhiteClock "0:02:04"]
[BlackClock "0:01:03"]
[Board "57"]

1. d4 {[%clk 0:03:00]}  e6 {[%clk 0:02:58]} 2. c4 {[%clk 0:03:00]}  b6 {[%clk 0:02:58]} 3. Nc3 {[%clk 0:02:59]}  Bb7 {[%clk 0:02:58]} 4. e4 {[%clk 0:02:54]}  Bb4 {[%clk 0:02:56]} 5. Bd3 {[%clk 0:02:50]}  f5 {[%clk 0:02:56]} 6. Qe2 {[%clk 0:02:47]}  Nf6 {[%clk 0:02:55]} 7. d5 {[%clk 0:02:30]}  fxe4 {[%clk 0:02:49]} 8. Bxe4 {[%clk 0:02:30]}  Nxe4 {[%clk 0:02:48]} 9. Qxe4 {[%clk 0:02:29]}  O-O {[%clk 0:02:28]} 10. Be3 {[%clk 0:02:26]}  exd5 {[%clk 0:02:23]} 11. cxd5 {[%clk 0:02:25]}  Re8 {[%clk 0:02:19]} 12. Qxb4 {[%clk 0:02:24]}  Na6 {[%clk 0:02:13]} 13. Qc4 {[%clk 0:02:21]}  Kh8 {[%clk 0:01:52]} 14. Nge2 {[%clk 0:02:21]}  Qe7 {[%clk 0:01:46]} 15. O-O {[%clk 0:02:19]}  d6 {[%clk 0:01:43]} 16. b4 {[%clk 0:02:15]}  Qf7 {[%clk 0:01:28]} 17. Nd4 {[%clk 0:02:11]}  Rad8 {[%clk 0:01:24]} 18. Nc6 {[%clk 0:02:11]}  Rd7 {[%clk 0:01:23]} 19. b5 {[%clk 0:02:08]}  Nc5 {[%clk 0:01:21]} 20. Bxc5 {[%clk 0:02:08]}  dxc5 {[%clk 0:01:21]} 21. Rfe1 {[%clk 0:02:08]}  Rf8 {[%clk 0:01:17]} 22. f3 {[%clk 0:02:05]}  a6 {[%clk 0:01:03]} 23. Ne5 {[%clk 0:02:04]} 1-0


[Site "https://www.chess.com"]

[Event "Titled Tuesday Blitz June 13 Late 2023"]
[White "Chernobay, Artem"]
[Black "Yurasova, Daria"]
[WhiteFideId "4167406"]
[BlackFideId "34146919"]
[WhiteElo "2474"]
[BlackElo "2109"]
[Result "1-0"]
[Round "8"]
[TimeControl "180+2"]
[Date "2023.06.13"]
[WhiteClock "0:00:06"]
[BlackClock "0:00:01"]
[Board "58"]

1. d4 {[%clk 0:02:48]}  d5 {[%clk 0:02:59]} 2. c4 {[%clk 0:02:48]}  dxc4 {[%clk 0:02:58]} 3. e4 {[%clk 0:02:47]}  Nf6 {[%clk 0:02:58]} 4. e5 {[%clk 0:02:48]}  Nd5 {[%clk 0:02:59]} 5. Bxc4 {[%clk 0:02:48]}  Bf5 {[%clk 0:02:58]} 6. Ne2 {[%clk 0:02:46]}  e6 {[%clk 0:02:56]} 7. O-O {[%clk 0:02:46]}  Nc6 {[%clk 0:02:54]} 8. Nbc3 {[%clk 0:02:46]}  Nb6 {[%clk 0:02:54]} 9. Bb3 {[%clk 0:02:46]}  Qe7 {[%clk 0:02:45]} 10. Be3 {[%clk 0:02:36]}  O-O-O {[%clk 0:02:37]} 11. Qc1 {[%clk 0:02:36]}  h6 {[%clk 0:02:23]} 12. Ng3 {[%clk 0:02:32]}  Bh7 {[%clk 0:02:22]} 13. Rd1 {[%clk 0:02:30]}  Nb4 {[%clk 0:02:19]} 14. Nce4 {[%clk 0:02:23]}  N4d5 {[%clk 0:02:14]} 15. Nc5 {[%clk 0:02:15]}  Qe8 {[%clk 0:02:11]} 16. Bd2 {[%clk 0:02:06]}  g5 {[%clk 0:02:05]} 17. a4 {[%clk 0:02:04]}  Nd7 {[%clk 0:01:47]} 18. Nce4 {[%clk 0:01:42]}  f5 {[%clk 0:01:45]} 19. exf6 {[%clk 0:01:32]}  N7xf6 {[%clk 0:01:44]} 20. Re1 {[%clk 0:01:25]}  Bg7 {[%clk 0:01:27]} 21. Nc5 {[%clk 0:01:22]}  Rd6 {[%clk 0:00:55]} 22. a5 {[%clk 0:01:16]}  a6 {[%clk 0:00:48]} 23. Bc4 {[%clk 0:01:13]}  h5 {[%clk 0:00:46]} 24. Bxg5 {[%clk 0:01:12]}  Bg6 {[%clk 0:00:42]} 25. h4 {[%clk 0:01:11]}  Rf8 {[%clk 0:00:36]} 26. Qd2 {[%clk 0:01:04]}  Ng4 {[%clk 0:00:36]} 27. f3 {[%clk 0:01:02]}  Ngf6 {[%clk 0:00:33]} 28. Rad1 {[%clk 0:00:57]}  Nd7 {[%clk 0:00:28]} 29. Nxe6 {[%clk 0:00:47]}  Rxe6 {[%clk 0:00:26]} 30. Bxd5 {[%clk 0:00:47]}  Bxd4+ {[%clk 0:00:19]} 31. Kh1 {[%clk 0:00:47]}  Re5 {[%clk 0:00:13]} 32. f4 {[%clk 0:00:24]}  Re3 {[%clk 0:00:10]} 33. f5 {[%clk 0:00:19]}  Bh7 {[%clk 0:00:07]} 34. Bxe3 {[%clk 0:00:17]}  Bxe3 {[%clk 0:00:05]} 35. Qxe3 {[%clk 0:00:17]}  Qxe3 {[%clk 0:00:05]} 36. Rxe3 {[%clk 0:00:17]}  Nf6 {[%clk 0:00:06]} 37. Be6+ {[%clk 0:00:17]}  Kb8 {[%clk 0:00:07]} 38. Ne4 {[%clk 0:00:17]}  Ng4 {[%clk 0:00:07]} 39. Re2 {[%clk 0:00:17]}  Bxf5 {[%clk 0:00:07]} 40. Bxf5 {[%clk 0:00:17]}  Rxf5 {[%clk 0:00:08]} 41. Kg1 {[%clk 0:00:16]}  Rxa5 {[%clk 0:00:07]} 42. Ng3 {[%clk 0:00:16]}  Rb5 {[%clk 0:00:07]} 43. Red2 {[%clk 0:00:15]}  a5 {[%clk 0:00:06]} 44. Rf1 {[%clk 0:00:15]}  Ne3 {[%clk 0:00:06]} 45. Rf3 {[%clk 0:00:14]}  Nc4 {[%clk 0:00:06]} 46. Rd8+ {[%clk 0:00:14]}  Ka7 {[%clk 0:00:06]} 47. b3 {[%clk 0:00:14]}  Ne5 {[%clk 0:00:05]} 48. Rf5 {[%clk 0:00:14]}  b6 {[%clk 0:00:05]} 49. Re8 {[%clk 0:00:12]}  Rxb3 {[%clk 0:00:05]} 50. Rexe5 {[%clk 0:00:11]}  Rxg3 {[%clk 0:00:06]} 51. Rxh5 {[%clk 0:00:11]}  a4 {[%clk 0:00:06]} 52. Re4 {[%clk 0:00:10]}  a3 {[%clk 0:00:05]} 53. Rg5 {[%clk 0:00:10]}  Rd3 {[%clk 0:00:04]} 54. Kh2 {[%clk 0:00:08]}  c5 {[%clk 0:00:04]} 55. h5 {[%clk 0:00:07]}  Ka6 {[%clk 0:00:05]} 56. h6 {[%clk 0:00:07]}  Kb5 {[%clk 0:00:06]} 57. h7 {[%clk 0:00:07]}  Rd8 {[%clk 0:00:06]} 58. Rg8 {[%clk 0:00:07]}  a2 {[%clk 0:00:04]} 59. Re1 {[%clk 0:00:07]}  Rxg8 {[%clk 0:00:02]} 60. hxg8=Q {[%clk 0:00:07]}  a1=Q {[%clk 0:00:01]} 61. Rxa1 {[%clk 0:00:06]} 1-0


[Site "https://www.chess.com"]

[Event "Titled Tuesday Blitz June 13 Late 2023"]
[White "Schnaider, Ilan"]
[Black "Dudzinski, Pawel"]
[WhiteFideId "169013"]
[BlackFideId "1117890"]
[WhiteElo "2224"]
[BlackElo "2099"]
[Result "1-0"]
[Round "8"]
[TimeControl "180+2"]
[Date "2023.06.13"]
[WhiteClock "0:00:02"]
[BlackClock "0:00:01"]
[Board "59"]

1. e4 {[%clk 0:02:48]}  c6 {[%clk 0:02:09]} 2. Nf3 {[%clk 0:02:48]}  d5 {[%clk 0:02:08]} 3. Nc3 {[%clk 0:02:49]}  dxe4 {[%clk 0:02:07]} 4. Nxe4 {[%clk 0:02:49]}  Nf6 {[%clk 0:02:08]} 5. Qe2 {[%clk 0:02:49]}  Nxe4 {[%clk 0:02:08]} 6. Qxe4 {[%clk 0:02:50]}  Qa5 {[%clk 0:02:08]} 7. Bc4 {[%clk 0:02:48]}  Bf5 {[%clk 0:02:08]} 8. Qf4 {[%clk 0:02:49]}  e6 {[%clk 0:02:09]} 9. O-O {[%clk 0:02:48]}  Be7 {[%clk 0:02:09]} 10. Qg3 {[%clk 0:02:45]}  O-O {[%clk 0:02:08]} 11. d4 {[%clk 0:02:45]}  Bxc2 {[%clk 0:01:58]} 12. Ne5 {[%clk 0:02:32]}  Bf6 {[%clk 0:01:54]} 13. Bf4 {[%clk 0:01:56]}  Qd8 {[%clk 0:01:52]} 14. Rac1 {[%clk 0:01:46]}  Bg6 {[%clk 0:01:42]} 15. Rfd1 {[%clk 0:01:31]}  Nd7 {[%clk 0:01:41]} 16. Ng4 {[%clk 0:01:30]}  Nb6 {[%clk 0:01:39]} 17. Bc7 {[%clk 0:01:13]}  Qd7 {[%clk 0:01:32]} 18. h4 {[%clk 0:00:46]}  Kh8 {[%clk 0:01:09]} 19. Nxf6 {[%clk 0:00:38]}  gxf6 {[%clk 0:01:09]} 20. Bf4 {[%clk 0:00:38]}  Nxc4 {[%clk 0:01:00]} 21. Rxc4 {[%clk 0:00:37]}  Rg8 {[%clk 0:00:57]} 22. Re1 {[%clk 0:00:22]}  Bh5 {[%clk 0:00:46]} 23. Qh3 {[%clk 0:00:19]}  Rg4 {[%clk 0:00:35]} 24. Be3 {[%clk 0:00:14]}  Rag8 {[%clk 0:00:30]} 25. g3 {[%clk 0:00:15]}  Re4 {[%clk 0:00:17]} 26. Rc5 {[%clk 0:00:12]}  f5 {[%clk 0:00:13]} 27. Kh2 {[%clk 0:00:07]}  Bf3 {[%clk 0:00:11]} 28. Rc3 {[%clk 0:00:05]}  Rgg4 {[%clk 0:00:10]} 29. Rg1 {[%clk 0:00:03]}  Qd6 {[%clk 0:00:10]} 30. Bg5 {[%clk 0:00:02]}  Kg7 {[%clk 0:00:09]} 31. Rxf3 {[%clk 0:00:02]}  h6 {[%clk 0:00:08]} 32. Bf4 {[%clk 0:00:02]}  Qxd4 {[%clk 0:00:06]} 33. Be3 {[%clk 0:00:03]}  Qd5 {[%clk 0:00:05]} 34. Rf4 {[%clk 0:00:03]}  Rexf4 {[%clk 0:00:05]} 35. gxf4 {[%clk 0:00:03]}  h5 {[%clk 0:00:05]} 36. f3 {[%clk 0:00:02]}  Rg6 {[%clk 0:00:02]} 37. Rg5 {[%clk 0:00:02]}  Qxa2 {[%clk 0:00:02]} 38. Bd4+ {[%clk 0:00:02]}  Kh7 {[%clk 0:00:01]} 39. Rxh5+ {[%clk 0:00:02]}  Kg8 {[%clk 0:00:01]} 40. Rh8# {[%clk 0:00:02]} 1-0


[Site "https://www.chess.com"]

[Event "Titled Tuesday Blitz June 13 Late 2023"]
[White "Sztokbant, Bernardo Vainzoff"]
[Black "Korkmaz, Necmettin"]
[WhiteFideId "2115956"]
[BlackFideId "6303285"]
[WhiteElo "2222"]
[BlackElo "2097"]
[Result "1-0"]
[Round "8"]
[TimeControl "180+2"]
[Date "2023.06.13"]
[WhiteClock "0:00:19"]
[BlackClock "0:01:02"]
[Board "62"]

1. e4 {[%clk 0:02:59]}  e6 {[%clk 0:02:59]} 2. d4 {[%clk 0:02:59]}  d5 {[%clk 0:02:57]} 3. Nc3 {[%clk 0:02:58]}  Nf6 {[%clk 0:02:57]} 4. e5 {[%clk 0:02:58]}  Nfd7 {[%clk 0:02:57]} 5. f4 {[%clk 0:02:56]}  c5 {[%clk 0:02:57]} 6. Nf3 {[%clk 0:02:57]}  Nc6 {[%clk 0:02:58]} 7. Be3 {[%clk 0:02:57]}  Qb6 {[%clk 0:02:58]} 8. Qd2 {[%clk 0:02:53]}  Qxb2 {[%clk 0:02:58]} 9. Rb1 {[%clk 0:02:53]}  Qa3 {[%clk 0:02:58]} 10. Bb5 {[%clk 0:02:38]}  c4 {[%clk 0:02:54]} 11. Ne2 {[%clk 0:01:48]}  Be7 {[%clk 0:02:14]} 12. O-O {[%clk 0:01:46]}  O-O {[%clk 0:02:10]} 13. f5 {[%clk 0:01:30]}  exf5 {[%clk 0:02:09]} 14. Nf4 {[%clk 0:01:30]}  Nb6 {[%clk 0:02:08]} 15. Bxc6 {[%clk 0:01:25]}  bxc6 {[%clk 0:02:07]} 16. Nh5 {[%clk 0:01:18]}  Be6 {[%clk 0:01:50]} 17. Bh6 {[%clk 0:01:16]}  g6 {[%clk 0:01:41]} 18. Bxf8 {[%clk 0:00:47]}  Bxf8 {[%clk 0:01:40]} 19. Nf6+ {[%clk 0:00:47]}  Kh8 {[%clk 0:01:40]} 20. Ng5 {[%clk 0:00:45]}  h6 {[%clk 0:01:38]} 21. Rf3 {[%clk 0:00:31]}  Qxa2 {[%clk 0:01:37]} 22. Rbf1 {[%clk 0:00:28]}  Bg7 {[%clk 0:01:20]} 23. Rh3 {[%clk 0:00:27]}  c3 {[%clk 0:01:11]} 24. Nxf7+ {[%clk 0:00:18]}  Bxf7 {[%clk 0:01:03]} 25. Rxh6+ {[%clk 0:00:18]}  Bxh6 {[%clk 0:01:02]} 26. Qxh6# {[%clk 0:00:19]} 1-0


[Site "https://www.chess.com"]

[Event "Titled Tuesday Blitz June 13 Late 2023"]
[White "MaryanKyrychenko"]
[Black "Papayan, Oleg"]
[BlackFideId "4193911"]
[WhiteElo "2576"]
[BlackElo "2167"]
[Result "1-0"]
[Round "8"]
[TimeControl "180+2"]
[Date "2023.06.13"]
[WhiteClock "0:00:15"]
[BlackClock "0:00:00"]
[Board "64"]

1. e4 {[%clk 0:03:00]}  e5 {[%clk 0:02:59]} 2. Nf3 {[%clk 0:03:00]}  Nc6 {[%clk 0:03:00]} 3. d4 {[%clk 0:03:01]}  exd4 {[%clk 0:03:01]} 4. Nxd4 {[%clk 0:03:01]}  Qh4 {[%clk 0:03:01]} 5. Nc3 {[%clk 0:03:01]}  Bb4 {[%clk 0:03:02]} 6. Be2 {[%clk 0:03:01]}  Qxe4 {[%clk 0:02:57]} 7. Nb5 {[%clk 0:03:01]}  Bxc3+ {[%clk 0:02:57]} 8. bxc3 {[%clk 0:03:01]}  Kd8 {[%clk 0:02:57]} 9. O-O {[%clk 0:03:00]}  Nf6 {[%clk 0:02:57]} 10. Bf3 {[%clk 0:02:54]}  Qc4 {[%clk 0:02:57]} 11. a4 {[%clk 0:02:47]}  a6 {[%clk 0:02:35]} 12. Nd4 {[%clk 0:02:42]}  Qxc3 {[%clk 0:02:33]} 13. Bxc6 {[%clk 0:02:32]}  Qxa1 {[%clk 0:02:20]} 14. Re1 {[%clk 0:01:24]}  d6 {[%clk 0:01:30]} 15. Qe2 {[%clk 0:01:12]}  Bd7 {[%clk 0:00:51]} 16. Bxb7 {[%clk 0:01:08]}  Re8 {[%clk 0:00:49]} 17. Be3 {[%clk 0:00:48]}  Qxd4 {[%clk 0:00:47]} 18. Bxa8 {[%clk 0:00:47]}  Qxa4 {[%clk 0:00:42]} 19. Rb1 {[%clk 0:00:45]}  Bb5 {[%clk 0:00:40]} 20. c4 {[%clk 0:00:42]}  Qxc4 {[%clk 0:00:36]} 21. Qf3 {[%clk 0:00:35]}  Qd3 {[%clk 0:00:27]} 22. Rc1 {[%clk 0:00:28]}  Ne4 {[%clk 0:00:05]} 23. h3 {[%clk 0:00:22]}  Nc3 {[%clk 0:00:02]} 24. Kh2 {[%clk 0:00:18]}  Ne2 {[%clk 0:00:00]} 25. Rxc7 {[%clk 0:00:15]} 1-0


[Site "https://www.chess.com"]

[Event "Titled Tuesday Blitz June 13 Late 2023"]
[White "Rodriguez, Santiago"]
[Black "MKlose11"]
[WhiteFideId "3000591"]
[WhiteElo "2249"]
[BlackElo "2552"]
[Result "1-0"]
[Round "8"]
[TimeControl "180+2"]
[Date "2023.06.13"]
[WhiteClock "0:00:13"]
[BlackClock "0:00:19"]
[Board "69"]

1. d4 {[%clk 0:03:00]}  Nf6 {[%clk 0:02:59]} 2. Bg5 {[%clk 0:02:59]}  c5 {[%clk 0:02:58]} 3. d5 {[%clk 0:02:59]}  e6 {[%clk 0:02:57]} 4. Nc3 {[%clk 0:02:58]}  Qb6 {[%clk 0:02:55]} 5. e4 {[%clk 0:02:58]}  h6 {[%clk 0:02:43]} 6. Bxf6 {[%clk 0:02:54]}  gxf6 {[%clk 0:02:44]} 7. Bc4 {[%clk 0:02:45]}  Qxb2 {[%clk 0:02:38]} 8. Nge2 {[%clk 0:02:45]}  a6 {[%clk 0:02:32]} 9. a4 {[%clk 0:02:45]}  Qb4 {[%clk 0:02:28]} 10. Qd3 {[%clk 0:02:42]}  Qa5 {[%clk 0:02:28]} 11. O-O {[%clk 0:02:41]}  d6 {[%clk 0:02:16]} 12. dxe6 {[%clk 0:02:37]}  fxe6 {[%clk 0:02:12]} 13. e5 {[%clk 0:02:23]}  Qc7 {[%clk 0:01:01]} 14. exf6 {[%clk 0:02:18]}  Nc6 {[%clk 0:00:52]} 15. Nf4 {[%clk 0:02:14]}  Ne5 {[%clk 0:00:47]} 16. Qe2 {[%clk 0:01:56]}  Qf7 {[%clk 0:00:41]} 17. Ne4 {[%clk 0:01:30]}  Nxc4 {[%clk 0:00:36]} 18. Qxc4 {[%clk 0:01:25]}  d5 {[%clk 0:00:36]} 19. Qe2 {[%clk 0:01:13]}  dxe4 {[%clk 0:00:36]} 20. Qxe4 {[%clk 0:01:14]}  Bd6 {[%clk 0:00:36]} 21. Nd5 {[%clk 0:00:59]}  O-O {[%clk 0:00:32]} 22. Nb6 {[%clk 0:00:58]}  Rb8 {[%clk 0:00:29]} 23. Rad1 {[%clk 0:00:54]}  Bc7 {[%clk 0:00:29]} 24. Qg4+ {[%clk 0:00:36]}  Kh8 {[%clk 0:00:26]} 25. Nc4 {[%clk 0:00:17]}  Qxf6 {[%clk 0:00:24]} 26. Rd3 {[%clk 0:00:16]}  e5 {[%clk 0:00:23]} 27. Qh5 {[%clk 0:00:16]}  e4 {[%clk 0:00:22]} 28. Rh3 {[%clk 0:00:12]}  Bxh3 {[%clk 0:00:22]} 29. Qxh3 {[%clk 0:00:13]}  Rbe8 {[%clk 0:00:20]} 30. Ne3 {[%clk 0:00:13]}  Rg8 {[%clk 0:00:19]} 31. Nd5 {[%clk 0:00:13]}  Qe5 {[%clk 0:00:19]} 32. Qxh6# {[%clk 0:00:13]} 1-0


[Site "https://www.chess.com"]

[Event "Titled Tuesday Blitz June 13 Late 2023"]
[White "Tokhirjonova, Gulrukhbegim"]
[Black "Elaisaz"]
[WhiteFideId "14203626"]
[WhiteElo "2265"]
[BlackElo "2289"]
[Result "0-1"]
[Round "8"]
[TimeControl "180+2"]
[Date "2023.06.13"]
[WhiteClock "0:00:13"]
[BlackClock "0:00:01"]
[Board "71"]

1. e4 {[%clk 0:03:00]}  c5 {[%clk 0:02:55]} 2. Nf3 {[%clk 0:02:59]}  Nc6 {[%clk 0:02:55]} 3. Bc4 {[%clk 0:02:54]}  e6 {[%clk 0:02:48]} 4. Nc3 {[%clk 0:02:53]}  a6 {[%clk 0:02:47]} 5. a4 {[%clk 0:02:51]}  d6 {[%clk 0:02:27]} 6. d4 {[%clk 0:02:47]}  cxd4 {[%clk 0:02:26]} 7. Nxd4 {[%clk 0:02:48]}  Nf6 {[%clk 0:02:25]} 8. O-O {[%clk 0:02:47]}  Be7 {[%clk 0:02:24]} 9. Be3 {[%clk 0:02:46]}  O-O {[%clk 0:02:23]} 10. f4 {[%clk 0:02:43]}  Bd7 {[%clk 0:02:19]} 11. Kh1 {[%clk 0:02:30]}  e5 {[%clk 0:02:18]} 12. Nxc6 {[%clk 0:02:13]}  Bxc6 {[%clk 0:02:18]} 13. fxe5 {[%clk 0:02:12]}  dxe5 {[%clk 0:02:16]} 14. Qf3 {[%clk 0:02:12]}  Rc8 {[%clk 0:02:09]} 15. Rad1 {[%clk 0:02:11]}  Qc7 {[%clk 0:02:01]} 16. b3 {[%clk 0:02:09]}  b5 {[%clk 0:01:50]} 17. axb5 {[%clk 0:02:07]}  axb5 {[%clk 0:01:51]} 18. Nxb5 {[%clk 0:02:07]}  Bxb5 {[%clk 0:01:48]} 19. Bxb5 {[%clk 0:02:08]}  Qxc2 {[%clk 0:01:48]} 20. Qg3 {[%clk 0:01:59]}  Qxb3 {[%clk 0:01:28]} 21. Bd3 {[%clk 0:01:35]}  Rc3 {[%clk 0:01:08]} 22. Bg5 {[%clk 0:01:30]}  Nxe4 {[%clk 0:01:00]} 23. Qxe5 {[%clk 0:01:27]}  Rxd3 {[%clk 0:00:53]} 24. Rb1 {[%clk 0:01:22]}  Qe6 {[%clk 0:00:19]} 25. Qxe6 {[%clk 0:01:14]}  fxe6 {[%clk 0:00:20]} 26. Bxe7 {[%clk 0:01:14]}  Re8 {[%clk 0:00:14]} 27. Bh4 {[%clk 0:01:10]}  Nd2 {[%clk 0:00:13]} 28. Rfd1 {[%clk 0:01:05]}  h6 {[%clk 0:00:12]} 29. Rb2 {[%clk 0:01:01]}  Nc4 {[%clk 0:00:10]} 30. Rxd3 {[%clk 0:01:01]}  Nxb2 {[%clk 0:00:11]} 31. Rd6 {[%clk 0:00:58]}  Nc4 {[%clk 0:00:10]} 32. Rd7 {[%clk 0:00:56]}  Ne3 {[%clk 0:00:09]} 33. h3 {[%clk 0:00:54]}  Nf5 {[%clk 0:00:09]} 34. Be1 {[%clk 0:00:53]}  Re7 {[%clk 0:00:10]} 35. Rd8+ {[%clk 0:00:52]}  Kf7 {[%clk 0:00:10]} 36. g4 {[%clk 0:00:51]}  Ne3 {[%clk 0:00:07]} 37. Kg1 {[%clk 0:00:47]}  Nd5 {[%clk 0:00:07]} 38. Bh4 {[%clk 0:00:45]}  Rb7 {[%clk 0:00:07]} 39. Bf2 {[%clk 0:00:44]}  g5 {[%clk 0:00:06]} 40. Bd4 {[%clk 0:00:41]}  Nf4 {[%clk 0:00:06]} 41. h4 {[%clk 0:00:34]}  Ne2+ {[%clk 0:00:06]} 42. Kh2 {[%clk 0:00:30]}  Nxd4 {[%clk 0:00:07]} 43. Rxd4 {[%clk 0:00:29]}  gxh4 {[%clk 0:00:08]} 44. Kh3 {[%clk 0:00:30]}  Kf6 {[%clk 0:00:08]} 45. Kxh4 {[%clk 0:00:30]}  e5 {[%clk 0:00:08]} 46. Rd8 {[%clk 0:00:30]}  Re7 {[%clk 0:00:07]} 47. Rf8+ {[%clk 0:00:28]}  Ke6 {[%clk 0:00:07]} 48. Rh8 {[%clk 0:00:28]}  e4 {[%clk 0:00:06]} 49. Rxh6+ {[%clk 0:00:28]}  Kd5 {[%clk 0:00:07]} 50. Rh8 {[%clk 0:00:25]}  e3 {[%clk 0:00:07]} 51. Rd8+ {[%clk 0:00:25]}  Ke4 {[%clk 0:00:07]} 52. Rd1 {[%clk 0:00:26]}  e2 {[%clk 0:00:08]} 53. Re1 {[%clk 0:00:26]}  Kf3 {[%clk 0:00:08]} 54. Kh5 {[%clk 0:00:23]}  Kf2 {[%clk 0:00:08]} 55. Rh1 {[%clk 0:00:17]}  e1=Q {[%clk 0:00:09]} 56. Rxe1 {[%clk 0:00:18]}  Rxe1 {[%clk 0:00:09]} 57. g5 {[%clk 0:00:18]}  Kf3 {[%clk 0:00:08]} 58. g6 {[%clk 0:00:17]}  Kf4 {[%clk 0:00:08]} 59. g7 {[%clk 0:00:14]}  Rg1 {[%clk 0:00:08]} 60. Kh6 {[%clk 0:00:14]}  Kf5 {[%clk 0:00:08]} 61. Kh7 {[%clk 0:00:14]}  Rh1+ {[%clk 0:00:07]} 62. Kg8 {[%clk 0:00:13]}  Kf6 {[%clk 0:00:07]} 63. Kf8 {[%clk 0:00:13]}  Ra1 {[%clk 0:00:02]} 64. g8=Q {[%clk 0:00:13]}  Ra8# {[%clk 0:00:01]} 0-1


[Site "https://www.chess.com"]

[Event "Titled Tuesday Blitz June 13 Late 2023"]
[White "Peycheva, Gergana"]
[Black "Mendez Fortes, Eduardo Jesus"]
[WhiteFideId "2916711"]
[BlackFideId "3502376"]
[WhiteElo "2216"]
[BlackElo "2307"]
[Result "0-1"]
[Round "8"]
[TimeControl "180+2"]
[Date "2023.06.13"]
[WhiteClock "0:00:00"]
[BlackClock "0:00:26"]
[Board "75"]

1. d4 {[%clk 0:03:00]}  Nf6 {[%clk 0:02:57]} 2. c4 {[%clk 0:03:01]}  e6 {[%clk 0:02:58]} 3. Nc3 {[%clk 0:03:01]}  Bb4 {[%clk 0:02:58]} 4. Qc2 {[%clk 0:03:01]}  O-O {[%clk 0:02:58]} 5. e4 {[%clk 0:03:01]}  d5 {[%clk 0:02:58]} 6. e5 {[%clk 0:03:01]}  Ne4 {[%clk 0:02:57]} 7. Bd3 {[%clk 0:03:02]}  c5 {[%clk 0:02:57]} 8. Nf3 {[%clk 0:03:02]}  cxd4 {[%clk 0:02:57]} 9. Nxd4 {[%clk 0:03:02]}  Nd7 {[%clk 0:02:58]} 10. Bf4 {[%clk 0:03:02]}  Qh4 {[%clk 0:02:52]} 11. g3 {[%clk 0:03:02]}  Qh5 {[%clk 0:02:51]} 12. O-O {[%clk 0:03:00]}  Bxc3 {[%clk 0:02:35]} 13. bxc3 {[%clk 0:02:59]}  Nxe5 {[%clk 0:02:35]} 14. Bxe4 {[%clk 0:02:26]}  dxe4 {[%clk 0:02:33]} 15. Qxe4 {[%clk 0:02:26]}  Nxc4 {[%clk 0:02:31]} 16. Nf3 {[%clk 0:02:15]}  Nb6 {[%clk 0:02:25]} 17. Rfd1 {[%clk 0:02:05]}  Nd5 {[%clk 0:02:24]} 18. Be5 {[%clk 0:02:01]}  Nb6 {[%clk 0:02:07]} 19. Bd6 {[%clk 0:01:54]}  Re8 {[%clk 0:02:07]} 20. c4 {[%clk 0:01:47]}  Bd7 {[%clk 0:02:02]} 21. c5 {[%clk 0:01:47]}  Bc6 {[%clk 0:02:01]} 22. g4 {[%clk 0:01:21]}  Bxe4 {[%clk 0:01:22]} 23. gxh5 {[%clk 0:01:22]}  Nc4 {[%clk 0:01:21]} 24. Nd2 {[%clk 0:01:12]}  Nxd6 {[%clk 0:01:19]} 25. cxd6 {[%clk 0:01:09]}  Bd5 {[%clk 0:01:20]} 26. h6 {[%clk 0:00:38]}  gxh6 {[%clk 0:01:19]} 27. Nb3 {[%clk 0:00:34]}  Rad8 {[%clk 0:01:14]} 28. Nc5 {[%clk 0:00:25]}  b6 {[%clk 0:01:07]} 29. Na6 {[%clk 0:00:25]}  Rxd6 {[%clk 0:00:59]} 30. Nc7 {[%clk 0:00:24]}  Red8 {[%clk 0:00:59]} 31. Nxd5 {[%clk 0:00:24]}  Rxd5 {[%clk 0:01:00]} 32. Rdc1 {[%clk 0:00:24]}  Rf5 {[%clk 0:00:57]} 33. Rc2 {[%clk 0:00:18]}  Rd3 {[%clk 0:00:56]} 34. Re1 {[%clk 0:00:17]}  Kg7 {[%clk 0:00:55]} 35. Re4 {[%clk 0:00:17]}  Rdd5 {[%clk 0:00:52]} 36. Ra4 {[%clk 0:00:15]}  Ra5 {[%clk 0:00:52]} 37. Rac4 {[%clk 0:00:14]}  Rac5 {[%clk 0:00:48]} 38. Rxc5 {[%clk 0:00:13]}  Rxc5 {[%clk 0:00:48]} 39. Rd2 {[%clk 0:00:13]}  Ra5 {[%clk 0:00:47]} 40. Kg2 {[%clk 0:00:13]}  Kf6 {[%clk 0:00:48]} 41. Kg3 {[%clk 0:00:13]}  Kf5 {[%clk 0:00:48]} 42. Rd7 {[%clk 0:00:13]}  f6 {[%clk 0:00:46]} 43. Rxh7 {[%clk 0:00:12]}  Rxa2 {[%clk 0:00:46]} 44. Rxh6 {[%clk 0:00:13]}  e5 {[%clk 0:00:46]} 45. Rh7 {[%clk 0:00:11]}  b5 {[%clk 0:00:46]} 46. h4 {[%clk 0:00:11]}  b4 {[%clk 0:00:45]} 47. Rb7 {[%clk 0:00:11]}  Ra3+ {[%clk 0:00:44]} 48. Kg2 {[%clk 0:00:10]}  a5 {[%clk 0:00:43]} 49. Rg7 {[%clk 0:00:09]}  Rc3 {[%clk 0:00:38]} 50. h5 {[%clk 0:00:09]}  Rc8 {[%clk 0:00:38]} 51. Ra7 {[%clk 0:00:07]}  Rb8 {[%clk 0:00:34]} 52. Rxa5 {[%clk 0:00:07]}  b3 {[%clk 0:00:34]} 53. Ra1 {[%clk 0:00:07]}  b2 {[%clk 0:00:34]} 54. Rb1 {[%clk 0:00:07]}  Kg5 {[%clk 0:00:35]} 55. Kf3 {[%clk 0:00:07]}  Kxh5 {[%clk 0:00:35]} 56. Ke4 {[%clk 0:00:08]}  Rb4+ {[%clk 0:00:32]} 57. Ke3 {[%clk 0:00:04]}  Kg5 {[%clk 0:00:30]} 58. f3 {[%clk 0:00:04]}  Kf5 {[%clk 0:00:30]} 59. Kd3 {[%clk 0:00:03]}  Kf4 {[%clk 0:00:30]} 60. Ke2 {[%clk 0:00:04]}  Rb8 {[%clk 0:00:30]} 61. Kf2 {[%clk 0:00:04]}  f5 {[%clk 0:00:29]} 62. Ke2 {[%clk 0:00:04]}  Rh8 {[%clk 0:00:28]} 63. Kd3 {[%clk 0:00:01]}  Rh2 {[%clk 0:00:28]} 64. Re1 {[%clk 0:00:00]}  Kxf3 {[%clk 0:00:26]} 0-1


[Site "https://www.chess.com"]